bitfinex/quotes_ETHUSD_20251006
["timestamp","ask_amount","ask_price","bid_price","bid_amount"]
[1759768417794,10.3101,4669.6,4669.5,35.65618074]
[1759768418087,10.3101,4669.6,4669.5,24.37114674]
[1759768418288,11.5401,4669.6,4669.5,21.95514674]
[1759768418499,11.5401,4669.6,4669.5,22.04916074]
[1759768418671,11.5401,4669.6,4669.5,21.66249774]
[1759768418860,11.5401,4669.6,4669.5,23.64116174]
[1759768419060,11.5401,4669.6,4669.5,23.17498574]
[1759768419262,11.5401,4669.6,4669.5,13.522464]
[1759768419601,13.43311,4669.6,4669.1,0.93371042]
[1759768419781,13.43311,4669.6,4668.6,0.001]
[1759768419782,0.6336,4669.4,4669.2,2.416]
[1759768420105,0.6336,4669.4,4669.3,2.416]
[1759768420455,1.2097,4669.4,4669.3,2.416]
[1759768420858,1.2097,4669.4,4668.6,0.001]
[1759768421056,0.1072,4668.8,4668.6,0.001]
[1759768421694,0.4689,4668.7,4668.6,0.001]
[1759768422063,0.4689,4668.7,4668.6,2.417]
[1759768422464,1.6989,4668.7,4668.6,2.417]
[1759768423866,5.70442387,4668.7,4668.6,0.001]
[1759768424099,4.89568132,4668.7,4668.6,2.417]
[1759768424261,3.5625,4668.7,4668.6,2.417]
[1759768425164,4.7925,4668.7,4668.6,2.417]
[1759768426695,6.0225,4668.7,4668.6,2.417]
[1759768428196,7.2525,4668.7,4668.6,2.417]
[1759768429599,8.4825,4668.7,4668.6,2.417]
[1759768429801,9.33075,4668.7,4668.6,2.417]
[1759768430993,10.56075,4668.7,4668.6,2.417]
[1759768432514,11.79075,4668.7,4668.6,2.417]
[1759768432905,10.68825,4668.7,4668.6,2.417]
[1759768433204,9.84,4668.7,4668.6,4.55896975]
[1759768433808,11.07,4668.7,4668.6,4.55896975]
[1759768434196,11.07,4668.7,4668.6,2.417]
[1759768434398,11.5389,4668.7,4668.6,2.417]
[1759768435122,12.7689,4668.7,4668.6,2.417]
[1759768435626,14.05651,4668.7,4668.6,2.417]
[1759768436197,14.69011,4668.7,4668.6,2.417]
[1759768436639,15.92011,4668.7,4668.6,2.417]
[1759768437568,15.45121,4668.7,4668.6,2.417]
[1759768437781,13.53,4668.7,4668.6,12.44652975]
[1759768437978,13.53,4668.7,4668.6,37.70118258]
[1759768437979,14.76,4668.7,4668.6,37.70118258]
[1759768438180,14.76,4668.7,4668.6,37.94527353]
[1759768438675,14.76,4668.7,4668.6,37.25028258]
[1759768438871,14.76,4668.7,4668.6,16.36315558]
[1759768439035,14.76,4668.7,4668.6,24.18209358]
[1759768439372,14.76,4668.7,4668.6,24.63299358]
[1759768439524,15.99,4668.7,4668.6,24.63299358]
[1759768439959,15.99,4668.7,4668.6,37.70118258]
[1759768440961,17.22,4668.7,4668.6,37.70118258]
[1759768441362,17.22,4668.7,4668.6,37.60157353]
[1759768441576,17.22,4668.7,4668.6,38.05247353]
[1759768441886,1.23,4669.4,4668.6,38.05247353]
[1759768441887,1.23,4669.4,4669.3,2.14164864]
[1759768442087,1.23,4669.4,4669.3,14.49998447]
[1759768442386,1.23,4669.4,4669.3,10.11544947]
[1759768442958,1.23,4669.4,4669.3,16.82846747]
[1759768443556,2.46,4669.4,4669.3,17.28716747]
[1759768443863,2.46,4669.4,4669.3,16.82846747]
[1759768444083,2.46,4669.4,4669.3,24.48244347]
[1759768444284,2.46,4669.4,4669.3,27.69687847]
[1759768444470,12.302,4669.6,4669.5,2.14155691]
[1759768444677,12.302,4669.6,4669.5,44.49296069]
[1759768444858,12.302,4669.6,4669.5,44.95166069]
[1759768445060,7.39,4669.9,4669.7,2.14146519]
[1759768445260,7.39,4669.9,4669.8,44.70743216]
[1759768445464,7.39,4669.9,4669.8,44.81463216]
[1759768446079,7.39,4669.9,4669.8,45.23375165]
[1759768446480,8.62,4669.9,4669.8,45.23375165]
[1759768447100,8.62,4669.9,4669.8,45.4778426]
[1759768447101,1e-08,4669.9,4669.8,45.4778426]
[1759768447309,1e-08,4669.9,4669.8,47.6158426]
[1759768447961,1.23000001,4669.9,4669.8,47.6158426]
[1759768448396,1.23000001,4669.9,4669.8,40.6158426]
[1759768448919,1.23000001,4669.9,4669.8,40.37175165]
[1759768449292,2.46000001,4669.9,4669.8,40.37175165]
[1759768450783,3.69000001,4669.9,4669.8,40.37175165]
[1759768451175,3.69000001,4669.9,4669.8,10.37175165]
[1759768451382,3.69000001,4669.9,4669.8,40.37175165]
[1759768452201,4.92200001,4669.9,4669.8,40.37175165]
[1759768452778,4.92200001,4669.9,4669.8,37.49705165]
[1759768452989,4.92200001,4669.9,4669.8,37.77505165]
[1759768453278,5.35490001,4669.9,4669.8,9.75152183]
[1759768453603,5.35490001,4669.9,4669.8,11.89294116]
[1759768453772,6.58490001,4669.9,4669.8,11.89294116]
[1759768453973,6.58490001,4669.9,4669.8,8.002205]
[1759768454390,6.58490001,4669.9,4669.8,8.085306]
[1759768454703,6.58490001,4669.9,4669.8,9.75988933]
[1759768455081,6.58490001,4669.9,4669.8,10.05120216]
[1759768455300,7.81490001,4669.9,4669.8,21.43408316]
[1759768455499,7.38200001,4669.9,4669.8,23.33404616]
[1759768456538,7.38200001,4669.9,4669.8,7.35593216]
[1759768456693,8.61200001,4669.9,4669.8,13.73330416]
[1759768457020,9.04490001,4669.9,4669.8,9.17588483]
[1759768457194,9.04490001,4669.9,4669.8,11.59088483]
[1759768457389,9.04490001,4669.9,4669.8,5.10631283]
[1759768457591,9.32272297,4669.9,4669.8,2.70631283]
[1759768457902,9.32272297,4669.9,4669.2,2.1416705]
[1759768457903,0.6336,4669.8,4669.2,2.1416705]
[1759768458210,0.6336,4669.8,4669.3,2.415]
[1759768458211,0.6336,4669.6,4669.3,2.415]
[1759768458412,0.7408,4669.6,4669.4,2.415]
[1759768458621,0.4329,4669.5,4669.2,2.14165365]
[1759768458955,0.4329,4669.4,4669.3,2.415]
[1759768459295,0.4329,4669.4,4669.3,5.997736]
[1759768459493,0.4329,4669.4,4669.3,8.397736]
[1759768459494,1.6629,4669.4,4669.3,8.397736]
[1759768459707,1.6629,4669.4,4669.3,10.53938464]
[1759768460540,1.6629,4669.4,4669.3,8.052898]
[1759768460703,2.2965,4669.4,4669.3,2.4]
[1759768460915,3.76687,4669.4,4669.3,4.815]
[1759768462291,3.76687,4669.4,4668.6,0.001]
[1759768462292,0.6336,4669.3,4668.6,0.001]
[1759768462497,0.6336,4669.1,4668.8,2.4]
[1759768462739,0.4329,4669.0,4668.9,2.415]
[1759768463746,0.4329,4669.0,4668.9,6.95683212]
[1759768463747,1.6629,4669.0,4668.9,6.95683212]
[1759768464054,1.23,4669.0,4668.9,33.53794595]
[1759768464342,1.23,4669.0,4668.9,37.70684495]
[1759768465123,2.46,4669.0,4668.9,37.24814495]
[1759768465324,2.46,4669.0,4668.9,37.24914495]
[1759768465920,2.46,4669.0,4668.9,19.97418995]
[1759768466123,2.46,4669.0,4668.9,19.01554595]
[1759768466526,3.69,4669.0,4668.9,19.01554595]
[1759768466956,3.69,4669.0,4668.9,4.83314495]
[1759768467116,3.69,4669.0,4668.9,7.24914495]
[1759768467117,4.1229,4669.0,4668.9,7.24914495]
[1759768467317,3.69,4669.0,4668.9,13.22499495]
[1759768467512,4.1229,4669.0,4668.9,12.97383095]
[1759768467742,4.1229,4669.0,4668.9,7.28294283]
[1759768467947,5.3529,4669.0,4668.9,5.10731283]
[1759768468161,5.3529,4669.0,4668.9,8.65123283]
[1759768468457,5.3529,4669.0,4668.9,10.79306495]
[1759768468632,5.3529,4669.0,4668.9,8.65123283]
[1759768468832,5.3529,4669.0,4668.9,10.79306495]
[1759768469032,5.3529,4669.0,4668.9,8.67263783]
[1759768469246,5.9865,4669.0,4668.9,5.10731283]
[1759768469435,7.2165,4669.0,4668.9,5.10731283]
[1759768470642,7.2165,4669.0,4668.9,2.4]
[1759768470845,9.53715,4669.0,4668.9,4.816]
[1759768471458,0.6336,4668.9,4668.8,0.001]
[1759768471848,0.6336,4668.9,4668.8,2.417]
[1759768472047,2.40526992,4668.9,4668.8,2.417]
[1759768472250,5.77710204,4668.9,4668.8,0.001]
[1759768472427,3.63526992,4668.9,4668.8,2.417]
[1759768472627,3.74246992,4668.9,4668.8,2.417]
[1759768473726,4.97246992,4668.9,4668.8,2.417]
[1759768474927,7.11430204,4668.9,4668.8,0.001]
[1759768475242,8.34430204,4668.9,4668.8,2.417]
[1759768475959,6.20246992,4668.9,4668.8,2.417]
[1759768476541,7.43246992,4668.9,4668.8,2.417]
[1759768477977,10.80430204,4668.9,4668.8,0.001]
[1759768478278,10.80430204,4668.9,4668.8,2.417]
[1759768478575,8.66246992,4668.9,4668.8,2.417]
[1759768479566,12.03430204,4668.9,4668.8,2.417]
[1759768481483,13.26430204,4668.9,4668.8,2.417]
[1759768482264,11.12246992,4668.9,4668.8,2.417]
[1759768482867,12.35246992,4668.9,4668.8,2.417]
[1759768483164,14.49430204,4668.9,4668.8,2.417]
[1759768483561,13.86070204,4668.9,4668.8,2.417]
[1759768484085,11.91956992,4668.9,4668.8,2.417]
[1759768484292,11.1772,4668.9,4668.8,2.417]
[1759768484468,11.8108,4668.9,4668.8,2.417]
[1759768484998,11.1772,4668.9,4668.8,2.417]
[1759768485166,11.8108,4668.9,4668.8,2.417]
[1759768485371,16.75397957,4668.9,4668.8,0.001]
[1759768485698,20.81489169,4668.9,4668.8,0.041]
[1759768485852,22.04489169,4668.9,4668.8,0.041]
[1759768487073,16.91881212,4668.9,4668.8,0.041]
[1759768487392,18.78241212,4668.9,4668.8,0.041]
[1759768487585,16.64058,4668.9,4668.8,0.041]
[1759768487785,16.18988,4668.9,4668.8,0.041]
[1759768488087,14.2708,4668.9,4668.8,0.041]
[1759768488594,15.9515,4668.9,4668.8,0.041]
[1759768489963,16.7308,4668.9,4668.8,0.041]
[1759768491269,17.9608,4668.9,4668.8,0.041]
[1759768492561,19.1908,4668.9,4668.8,0.041]
[1759768492788,21.77832062,4668.9,4668.8,0.041]
[1759768493992,23.00832062,4668.9,4668.8,0.041]
[1759768495397,24.23832062,4668.9,4668.8,0.041]
[1759768496038,26.38015274,4668.9,4668.8,0.041]
[1759768496332,24.23832062,4668.9,4668.8,0.041]
[1759768496559,26.38015274,4668.9,4668.8,0.041]
[1759768496709,27.61015274,4668.9,4668.8,0.041]
[1759768498339,28.84015274,4668.9,4668.8,0.001]
[1759768499604,30.07015274,4668.9,4668.8,0.001]
[1759768500839,30.26946337,4668.9,4668.8,0.001]
[1759768501036,31.58517144,4668.9,4668.8,0.001]
[1759768501744,31.58517144,4668.9,4668.6,0.001]
[1759768501745,2.77552387,4668.7,4668.6,0.001]
[1759768501924,5.11158392,4668.7,4668.6,0.001]
[1759768502125,5.56228392,4668.7,4668.6,0.001]
[1759768502466,6.79228392,4668.7,4668.6,0.001]
[1759768503530,2.77556975,4668.6,4668.5,0.001]
[1759768503723,3.51310918,4668.6,4668.5,0.001]
[1759768503930,5.6499298,4668.6,4668.5,0.001]
[1759768505151,6.8799298,4668.6,4668.5,0.001]
[1759768505822,4.10762062,4668.6,4668.5,0.001]
[1759768506554,2.5672,4668.6,4668.5,0.001]
[1759768506758,3.2008,4668.6,4668.5,0.001]
[1759768506921,5.34276975,4668.6,4668.5,0.001]
[1759768507317,5.77386975,4668.6,4668.5,0.001]
[1759768507743,8.18986975,4668.6,4668.5,0.001]
[1759768507957,11.75558872,4668.6,4668.5,0.001]
[1759768509370,11.55669037,4668.6,4668.5,0.001]
[1759768509544,12.78669037,4668.6,4668.5,0.001]
[1759768510474,10.37069037,4668.6,4668.5,0.001]
[1759768510666,10.56948423,4668.6,4668.5,0.001]
[1759768510873,11.79948423,4668.6,4668.5,0.001]
[1759768511369,11.60069037,4668.6,4668.5,0.001]
[1759768511677,11.25530707,4668.6,4668.5,0.001]
[1759768511985,8.37253732,4668.6,4668.5,0.001]
[1759768512268,12.29239037,4668.6,4668.5,0.001]
[1759768512780,9.51682062,4668.6,4668.5,0.001]
[1759768513079,12.29239037,4668.6,4668.5,0.001]
[1759768513656,13.52239037,4668.6,4668.5,0.001]
[1759768515087,14.75239037,4668.6,4668.5,0.001]
[1759768515239,15.18349037,4668.6,4668.5,0.001]
[1759768516479,16.41349037,4668.6,4668.5,0.001]
[1759768517880,17.64349037,4668.6,4668.5,0.001]
[1759768519111,18.87349037,4668.6,4668.5,0.001]
[1759768519294,18.44239037,4668.6,4668.5,0.001]
[1759768520561,19.67239037,4668.6,4668.5,0.001]
[1759768521185,20.10349037,4668.6,4668.5,0.001]
[1759768521991,20.90239037,4668.6,4668.5,0.001]
[1759768522376,21.00959037,4668.6,4668.5,0.001]
[1759768522772,21.44069037,4668.6,4668.5,0.001]
[1759768523293,22.67069037,4668.6,4668.5,0.001]
[1759768524103,22.23959037,4668.6,4668.5,0.001]
[1759768524497,23.46959037,4668.6,4668.5,0.001]
[1759768525001,21.32762062,4668.6,4668.5,0.001]
[1759768525206,19.1908,4668.6,4668.5,0.47]
[1759768525610,19.1928,4668.6,4668.5,0.47]
[1759768525772,19.7892,4668.6,4668.5,0.001]
[1759768525974,19.7892,4668.6,4668.5,0.47]
[1759768526206,20.4228,4668.6,4668.5,0.47]
[1759768526882,20.4228,4668.6,4668.5,0.001]
[1759768527283,21.6528,4668.6,4668.5,0.001]
[1759768528506,21.6528,4668.6,4668.5,0.47]
[1759768528811,22.8828,4668.6,4668.5,0.001]
[1759768530204,24.1128,4668.6,4668.5,0.001]
[1759768531539,25.3428,4668.6,4668.5,0.001]
[1759768531739,25.3428,4668.6,4668.5,0.47]
[1759768532251,24.7092,4668.6,4668.5,2.61201563]
[1759768532401,24.602,4668.6,4668.5,5.01201563]
[1759768532739,24.602,4668.6,4668.5,18.00938863]
[1759768532948,25.832,4668.6,4668.5,17.4678645]
[1759768533500,2.46,4668.7,4668.5,17.4678645]
[1759768533501,2.46,4668.7,4668.6,4.54196975]
[1759768533835,2.46,4668.7,4668.6,35.29087162]
[1759768534194,3.69,4668.7,4668.6,35.29087162]
[1759768534733,3.69,4668.7,4668.6,5.29087162]
[1759768534954,3.69,4668.7,4668.6,2.416]
[1759768535097,3.69,4668.7,4668.6,4.816]
[1759768535435,3.69,4668.7,4668.6,2.4]
[1759768535735,5.5536,4668.7,4668.6,4.816]
[1759768535903,5.5536,4668.7,4668.6,2.416]
[1759768536640,0.6336,4668.6,4668.5,0.001]
[1759768536936,1.1062,4668.6,4668.5,2.417]
[1759768537136,4.47816975,4668.6,4668.5,2.417]
[1759768537625,2.57086977,4668.6,4668.5,2.417]
[1759768537824,5.18543952,4668.6,4668.5,2.417]
[1759768538429,6.41543952,4668.6,4668.5,2.417]
[1759768539771,7.64543952,4668.6,4668.5,2.417]
[1759768541182,8.87543952,4668.6,4668.5,2.417]
[1759768542632,10.10543952,4668.6,4668.5,2.417]
[1759768543609,10.21263952,4668.6,4668.5,2.417]
[1759768543787,10.21463952,4668.6,4668.5,2.417]
[1759768543987,11.44463952,4668.6,4668.5,2.417]
[1759768544298,8.83006977,4668.6,4668.5,2.417]
[1759768544500,8.1228,4668.6,4668.5,2.417]
[1759768544694,7.4892,4668.6,4668.5,2.8798]
[1759768545003,8.1228,4668.6,4668.5,2.8798]
[1759768545299,8.1228,4668.6,4668.5,2.417]
[1759768545507,9.3528,4668.6,4668.5,2.417]
[1759768547091,10.5828,4668.6,4668.5,2.417]
[1759768547680,9.9492,4668.6,4668.5,2.417]
[1759768547868,10.5828,4668.6,4668.5,2.417]
[1759768548371,11.8128,4668.6,4668.5,2.417]
[1759768549802,13.0428,4668.6,4668.5,2.417]
[1759768551208,12.4092,4668.6,4668.5,2.417]
[1759768551404,14.2728,4668.6,4668.5,2.417]
[1759768551983,16.88736975,4668.6,4668.5,2.417]
[1759768552171,19.02419037,4668.6,4668.5,2.417]
[1759768552593,20.25419037,4668.6,4668.5,2.417]
[1759768553040,17.63962062,4668.6,4668.5,2.417]
[1759768553390,15.5028,4668.6,4668.5,2.417]
[1759768553641,15.5028,4668.6,4668.5,11.16849263]
[1759768553642,14.8692,4668.6,4668.5,11.16849263]
[1759768553788,14.8692,4668.6,4668.5,10.88385863]
[1759768554124,16.0992,4668.6,4668.5,9.73394763]
[1759768554333,15.992,4668.6,4668.5,24.43454316]
[1759768554496,15.992,4668.6,4668.5,23.31537082]
[1759768554921,15.992,4668.6,4668.5,20.65527316]
[1759768555103,15.992,4668.6,4668.5,23.07427316]
[1759768555331,4.92,4668.7,4668.5,23.07427316]
[1759768555332,4.92,4668.7,4668.6,23.47320475]
[1759768555623,4.92,4668.7,4668.6,24.37495428]
[1759768556124,4.92,4668.7,4668.6,19.56289828]
[1759768556328,4.92,4668.7,4668.6,19.29025475]
[1759768556542,4.92,4668.7,4668.6,23.65536775]
[1759768557119,6.15,4668.7,4668.6,23.65536775]
[1759768557431,6.15,4668.7,4668.6,25.24475775]
[1759768558223,6.15,4668.7,4668.6,22.13754994]
[1759768558415,7.38,4668.7,4668.6,21.66447694]
[1759768558618,7.38,4668.7,4668.6,18.52241694]
[1759768559494,7.38,4668.7,4668.6,20.01658494]
[1759768559899,8.61,4668.7,4668.6,20.01658494]
[1759768560435,8.61,4668.7,4668.6,20.28922847]
[1759768560592,8.61,4668.7,4668.6,16.76709847]
[1759768561225,9.84,4668.7,4668.6,16.76709847]
[1759768561439,25.83,4668.9,4668.8,4.54187799]
[1759768561646,25.83,4668.9,4668.8,29.45419999]
[1759768561803,3.69,4669.4,4669.0,2.14178624]
[1759768562139,0.002,4669.2,4669.0,34.81442977]
[1759768562311,0.002,4669.2,4669.0,35.27722977]
[1759768562512,0.002,4669.2,4669.0,5.27722977]
[1759768562709,0.002,4669.2,4669.0,35.27722977]
[1759768563633,0.002,4669.2,4669.0,37.69522977]
[1759768564040,1.232,4669.1,4669.0,37.69522977]
[1759768565440,3.69,4669.4,4669.2,2.1416945]
[1759768565600,3.69,4669.4,4669.3,37.43154864]
[1759768565799,3.69,4669.4,4669.3,37.70419217]
[1759768566338,0.002,4669.7,4669.6,4.54151105]
[1759768566339,1e-08,4669.7,4669.6,4.54151105]
[1759768566496,1e-08,4669.7,4669.6,39.09751105]
[1759768566699,9.84200001,4669.9,4669.8,2.14141933]
[1759768566936,9.84200001,4669.9,4669.8,37.23206286]
[1759768567151,9.84200001,4669.9,4669.8,37.70396286]
[1759768567659,1e-08,4669.9,4669.8,37.67541699]
[1759768567801,0.01,4671.9,4669.8,37.67541699]
[1759768567802,0.4778,4671.9,4670.0,2.14132762]
[1759768568010,0.4778,4671.9,4670.0,37.23197115]
[1759768568210,0.4778,4671.9,4670.0,37.70387115]
[1759768568511,0.4778,4671.9,4670.1,2.67264353]
[1759768568735,0.4778,4671.9,4670.8,2.14096086]
[1759768569043,0.4778,4671.9,4670.8,26.58243486]
[1759768569215,0.4778,4671.9,4670.8,27.05336739]
[1759768569414,1.24,4670.9,4670.8,27.05336739]
[1759768569738,1.24,4670.9,4670.8,28.54949339]
[1759768570247,1.24,4670.9,4670.8,28.07759339]
[1759768570540,1.24,4670.9,4670.8,28.54949339]
[1759768570743,1.24,4670.9,4670.8,37.23360439]
[1759768570944,2.47,4670.9,4670.8,37.23360439]
[1759768571319,2.47,4670.9,4670.8,37.33934001]
[1759768571843,2.47,4670.9,4670.8,37.44654001]
[1759768572350,3.7,4670.9,4670.8,37.91844001]
[1759768572557,1e-08,4670.9,4670.8,38.05533767]
[1759768572767,0.01,4671.9,4671.6,2.14057133]
[1759768573041,0.01,4671.9,4671.8,2.24770259]
[1759768573256,0.01,4671.9,4671.8,32.24770259]
[1759768573411,0.01,4671.9,4671.8,35.39224612]
[1759768573733,1e-08,4671.9,4671.8,35.28504612]
[1759768573915,1e-08,4671.9,4671.8,35.52914378]
[1759768574443,1e-08,4671.9,4671.8,37.66614378]
[1759768575145,1.23,4672.7,4672.6,2.14013611]
[1759768575334,1.23,4672.7,4672.6,30.98446964]
[1759768575542,1.23,4672.7,4672.6,34.98101964]
[1759768576045,1.23,4672.7,4672.6,34.94792564]
[1759768576547,2.46,4672.7,4672.6,30.78531764]
[1759768576956,2.46,4672.7,4672.6,23.11755164]
[1759768577159,2.46,4672.7,4672.6,26.49972064]
[1759768577750,2.46,4672.7,4672.6,22.13499664]
[1759768578054,3.69,4672.7,4672.6,21.67109864]
[1759768579025,3.69,4672.7,4672.6,29.96282564]
[1759768579299,3.69,4672.7,4672.6,24.72462864]
[1759768579421,4.92,4672.7,4672.6,24.72462864]
[1759768579617,4.922,4672.7,4672.6,21.84477464]
[1759768579817,4.922,4672.7,4672.6,22.31667464]
[1759768580120,4.922,4672.7,4672.6,36.1904663]
[1759768580326,4.922,4672.7,4672.6,7.9477773]
[1759768580581,4.922,4672.7,4672.6,37.23177964]
[1759768580760,6.152,4672.7,4672.6,37.23177964]
[1759768581456,6.152,4672.7,4672.6,37.70367964]
[1759768582147,7.382,4672.7,4672.6,37.70367964]
[1759768582321,0.01,4672.9,4672.7,2.4]
[1759768582522,1e-08,4672.9,4672.8,9.09604451]
[1759768582753,1e-08,4672.9,4672.8,36.94968804]
[1759768583103,1e-08,4672.9,4672.8,7.23168804]
[1759768583247,1e-08,4672.9,4672.8,33.21575004]
[1759768583427,1.23000001,4672.9,4672.8,33.21575004]
[1759768583622,1.23000001,4672.9,4672.8,33.32295004]
[1759768583924,1.23000001,4672.9,4672.8,33.30855504]
[1759768584128,1.23000001,4672.9,4672.8,35.52918704]
[1759768584958,1.23000001,4672.9,4672.8,34.12877704]
[1759768584959,2.46000001,4672.9,4672.8,34.12877704]
[1759768585167,2.46000001,4672.9,4672.8,37.32449304]
[1759768586052,2.46000001,4672.9,4672.8,35.10922704]
[1759768586366,3.69000001,4672.9,4672.8,35.40982604]
[1759768587265,3.69000001,4672.9,4672.8,33.01684604]
[1759768587465,3.69000001,4672.9,4672.8,15.75680604]
[1759768587664,4.92000001,4672.9,4672.8,15.75680604]
[1759768588178,4.92000001,4672.9,4672.8,26.94015304]
[1759768588998,6.15000001,4672.9,4672.8,26.94015304]
[1759768589189,6.15000001,4672.9,4672.8,27.16580904]
[1759768590201,6.15000001,4672.9,4672.8,37.32349304]
[1759768590365,7.38000001,4672.9,4672.8,37.32349304]
[1759768591005,7.38000001,4672.9,4672.8,35.16589604]
[1759768591283,7.38000001,4672.9,4672.8,37.32349304]
[1759768591690,8.61000001,4672.9,4672.8,37.32349304]
[1759768592105,8.61000001,4672.9,4672.8,35.93598204]
[1759768592316,8.61000001,4672.9,4672.8,37.32349304]
[1759768593136,9.84000001,4672.9,4672.8,36.89398804]
[1759768593273,9.84000001,4672.9,4672.8,37.32349304]
[1759768594265,11.07000001,4672.9,4672.8,37.32349304]
[1759768595315,11.07000001,4672.9,4672.8,32.13440704]
[1759768595511,11.07000001,4672.9,4672.8,16.32936804]
[1759768595752,1e-08,4672.9,4672.8,17.05659904]
[1759768595927,8.10422427,4673.2,4673.1,2.13990712]
[1759768596128,8.10422427,4673.2,4673.1,38.09148165]
[1759768596733,5.86702092,4673.2,4673.1,38.09148165]
[1759768596929,7.09702092,4673.2,4673.1,38.09148165]
[1759768597433,7.09702092,4673.2,4673.1,37.62418165]
[1759768598520,8.32702092,4673.2,4673.1,37.62418165]
[1759768599330,8.32702092,4673.2,4673.1,24.89026765]
[1759768599539,8.32702092,4673.2,4673.1,27.30626765]
[1759768600061,9.55702092,4673.2,4673.1,27.30626765]
[1759768600245,9.55702092,4673.2,4673.1,27.56619865]
[1759768600442,9.55702092,4673.2,4673.1,37.36325065]
[1759768601429,10.78702092,4673.2,4673.1,37.62318165]
[1759768601719,8.03901241,4673.2,4673.1,38.09048165]
[1759768602129,8.03901241,4673.2,4673.1,37.62318165]
[1759768602334,8.03901241,4673.2,4673.1,39.14489957]
[1759768602560,8.03901241,4673.2,4673.1,41.10796857]
[1759768602769,9.26901241,4673.2,4673.1,41.10796857]
[1759768603065,9.26901241,4673.2,4673.1,36.46896857]
[1759768603264,9.69791241,4673.2,4673.1,34.94725065]
[1759768603454,9.26901241,4673.2,4673.1,39.58625065]
[1759768603830,9.26901241,4673.2,4673.1,39.84618165]
[1759768604262,10.49901241,4673.2,4673.1,39.84618165]
[1759768605780,11.72901241,4673.2,4673.1,39.84618165]
[1759768606277,11.72901241,4673.2,4673.1,32.58800165]
[1759768606439,11.72901241,4673.2,4673.1,39.84618165]
[1759768606946,13.38791241,4673.2,4673.1,7.78268665]
[1759768607151,13.38791241,4673.2,4673.1,9.89854312]
[1759768607352,13.38791241,4673.2,4673.1,11.73408608]
[1759768607646,13.38791241,4673.2,4673.1,8.89865008]
[1759768607846,13.38791241,4673.2,4673.1,31.14909408]
[1759768608064,13.38791241,4673.2,4673.1,31.13973208]
[1759768608265,13.38791241,4673.2,4673.1,27.43591565]
[1759768608471,14.61791241,4673.2,4673.1,24.42126553]
[1759768608677,14.61791241,4673.2,4673.1,16.35639765]
[1759768608838,14.61791241,4673.2,4673.1,14.98672765]
[1759768609041,14.18901241,4673.2,4673.1,16.5228732]
[1759768609240,14.18901241,4673.2,4673.1,14.98672765]
[1759768609466,14.18901241,4673.2,4673.1,37.36325065]
[1759768609677,14.61791241,4673.2,4673.1,33.39419565]
[1759768609840,15.84791241,4673.2,4673.1,33.39419565]
[1759768610439,15.84791241,4673.2,4673.1,7.36325065]
[1759768610944,15.41901241,4673.2,4673.1,35.16895065]
[1759768611163,15.41901241,4673.2,4673.1,37.36325065]
[1759768611164,16.64901241,4673.2,4673.1,37.36325065]
[1759768611372,16.64901241,4673.2,4673.1,37.62318165]
[1759768612252,16.64901241,4673.2,4673.1,35.66779865]
[1759768612446,18.30791241,4673.2,4673.1,32.99186765]
[1759768612645,18.30791241,4673.2,4673.1,34.18424765]
[1759768612842,17.87901241,4673.2,4673.1,34.18424765]
[1759768613269,17.53169527,4673.2,4673.1,34.18424765]
[1759768613582,17.53169527,4673.2,4673.1,37.36425065]
[1759768613784,18.76169527,4673.2,4673.1,37.36425065]
[1759768614087,19.19059527,4673.2,4673.1,37.36425065]
[1759768614387,18.76169527,4673.2,4673.1,37.36425065]
[1759768614557,18.76169527,4673.2,4673.1,7.36425065]
[1759768614755,18.76169527,4673.2,4673.1,37.36425065]
[1759768615148,20.42059527,4673.2,4673.1,37.36425065]
[1759768615352,19.99169527,4673.2,4673.1,34.72474965]
[1759768615691,19.99169527,4673.2,4673.1,39.26639806]
[1759768616061,19.99169527,4673.2,4673.1,39.26739806]
[1759768616384,18.33629032,4673.2,4673.1,39.26739806]
[1759768616875,18.33629032,4673.2,4673.1,39.99462906]
[1759768617285,18.33629032,4673.2,4673.1,38.09248165]
[1759768617574,18.33629032,4673.2,4673.1,37.62518165]
[1759768617874,19.56629032,4673.2,4673.1,37.62518165]
[1759768618964,19.56629032,4673.2,4673.1,37.36525065]
[1759768619276,20.79629032,4673.2,4673.1,39.58825065]
[1759768620276,20.79629032,4673.2,4673.1,40.31548165]
[1759768620445,22.02629032,4673.2,4673.1,40.31548165]
[1759768620645,22.02629032,4673.2,4673.1,10.31548165]
[1759768620872,22.02629032,4673.2,4673.1,40.31548165]
[1759768621068,22.02629032,4673.2,4673.1,39.84818165]
[1759768621271,21.54009219,4673.2,4673.1,39.84818165]
[1759768621641,21.54009219,4673.2,4673.1,40.31548165]
[1759768621837,22.77009219,4673.2,4673.1,40.31548165]
[1759768622043,22.77009219,4673.2,4673.1,39.84818165]
[1759768622358,22.77009219,4673.2,4673.1,42.51118802]
[1759768623257,23.65280831,4673.2,4673.1,42.51118802]
[1759768624355,19.61354897,4673.2,4673.1,39.84818165]
[1759768624550,20.84354897,4673.2,4673.1,39.84818165]
[1759768625558,0.002,4673.4,4673.3,2.13981554]
[1759768625893,0.002,4673.4,4673.3,39.65289007]
[1759768626099,0.002,4673.4,4673.3,40.12739007]
[1759768626277,0.01,4674.9,4673.3,40.12739007]
[1759768626278,0.81510529,4674.2,4673.7,2.4]
[1759768626581,0.81510529,4674.2,4673.6,2.13965176]
[1759768626582,0.81510529,4674.2,4674.0,2.13949507]
[1759768626880,0.81510529,4674.2,4674.1,37.25659283]
[1759768627364,2.04510529,4674.2,4674.1,37.51652383]
[1759768627687,2.48850529,4674.2,4674.1,37.25659283]
[1759768627990,2.48850529,4674.2,4674.1,11.26230283]
[1759768628342,2.04510529,4674.2,4674.1,15.59966138]
[1759768628479,2.04510529,4674.2,4674.1,13.67930283]